Cogmind - Beta 16.1 *** ADVENTURER MODE // 2026.02.22 @ 01:19:56 // Winter2022/Polymind Player: Zable Result: Destroyed by Y-64 Sentinel with KE Penetrator Performance ------------- Evolutions (5) 2500 Regions Visited (9) 1800 Robots Destroyed (0) 0 Value Destroyed (0) 0 Prototype IDs (0) 0 Alien Tech Used (0) 0 Bonus (5653) 5653 TOTAL SCORE: 9683 Bonus ------- Polymind Skill 3166 Pacifist 1987 Entered DSFs 500 Cogmind --------- Core Integrity 0/1000 Matter 0/0 Energy 25/25 System Corruption 0% Temperature Critical (585) Movement Core (350) Ox6 Location -5/Extension Parts ------- > --- POWER (1) -------- (None) > --- PROPULSION (2) --- (None) > --- UTILITY (3) ------ Large Storage Unit > --- WEAPON (0) ------- (None) > --- INVENTORY (10) --- Field Propulsion Drive Field Propulsion Drive Field Propulsion Drive Field Propulsion Drive Field Propulsion Drive Improved Terrain Scan Processor Improved Terrain Scan Processor Improved Terrain Scan Processor Peak State ------------ > --- POWER ------------ Improved Ion Engine > --- PROPULSION ------- Medium Treads Medium Treads > --- UTILITY ---------- Large Storage Unit Advanced Weight Redist. System Transport Network Coupler > --- WEAPON ----------- (None) > --- INVENTORY -------- Field Propulsion Drive Field Propulsion Drive Field Propulsion Drive Field Propulsion Drive Field Propulsion Drive Improved Terrain Scan Processor Improved Terrain Scan Processor Improved Terrain Scan Processor [Rating: 18] Favorites ----------- Power Light Ion Engine Engine Light Ion Engine Propulsion Wheel Treads Medium Treads Wheel Wheel Hover Unit Hover Unit Utility Small Matter Pod Device Tractor Beam Storage Small Matter Pod Processor Visual Processing Unit Weapon None Build | -11 -10 -9 -9 -8 -7 -7 -6 -5 -5 ------- Run | Yrd Mat Mat Min Mat Fac DSF Fac Fac Ext Slots Evolved . | . . . . . . . . . . Power . | . . . . . . . . . . Propulsion . | . . . . . . . . . . Utility . | . . . . . . . . . . Weapon . | . . . . . . . . . . Parts Attached . | . . . . . . . . . . Power . | . . . . . . . . . . Engine . | . . . . . . . . . . Core . | . . . . . . . . . . Reactor . | . . . . . . . . . . Propulsion . | . . . . . . . . . . Treads . | . . . . . . . . . . Leg . | . . . . . . . . . . Wheel . | . . . . . . . . . . Hover . | . . . . . . . . . . Flight . | . . . . . . . . . . Utility . | . . . . . . . . . . Device . | . . . . . . . . . . Storage . | . . . . . . . . . . Processor . | . . . . . . . . . . Hackware . | . . . . . . . . . . Protection . | . . . . . . . . . . Artifact . | . . . . . . . . . . Weapon . | . . . . . . . . . . Energy Gun . | . . . . . . . . . . Energy Cannon . | . . . . . . . . . . Ballistic Gun . | . . . . . . . . . . Ballistic Cannon . | . . . . . . . . . . Launcher . | . . . . . . . . . . Special Weapon . | . . . . . . . . . . Impact Weapon . | . . . . . . . . . . Slashing Weapon . | . . . . . . . . . . Piercing Weapon . | . . . . . . . . . . Special Melee Weapon . | . . . . . . . . . . Unidentified Prototypes . | . . . . . . . . . . Parts Lost 9 | . . . . . . 2 . . 7 Power 2 | . . . . . . . . . 2 Propulsion 4 | . . . . . . 2 . . 2 Utility 3 | . . . . . . . . . 3 Weapon . | . . . . . . . . . . Highest Loss Streak 7 | . . . . . . 2 . . 7 To Critical Strikes 1 | . . . . . . . . . 1 Average Backups . | . . . . . . . . . 2 Power . | . . . . . . . . . . Propulsion . | . . . . . . . . . 1 Utility . | . . . . . . . . . . Weapon . | . . . . . . . . . . Tool/Special . | . . . . . . . . . . Unused Backups . | . . . . . . . . . . Power . | . . . . . . . . . . Propulsion . | . . . . . . . . . . Utility . | . . . . . . . . . . Weapon . | . . . . . . . . . . Tool/Special . | . . . . . . . . . . Average Slot Usage (%) 62 | . 100 100 89 80 80 71 40 40 43 Engine 20 | . 21 25 22 20 20 20 20 20 16 Wheel 12 | . 30 . 21 40 40 31 . . . Hover 6 | . 12 50 22 . . . . . . Device 1 | . 15 . . . . . . . 2 Storage 17 | . 15 . 10 20 20 20 20 20 19 Processor 3 | . 6 25 11 . . . . . 2 Peak Build Rating 18 | 5 5 5 5 4 4 4 2 2 18 Average Rating 3 | 1 4 5 4 4 4 3 2 2 3 On Entrance 3 | . 5 5 5 4 4 4 2 2 2 Avg Prop Armor Cover (%) . | . . . . . . . . . . Naked Turns 7 | . 2 . . . . 4 . . 1 Heaviest Build 27 | 9 9 3 4 4 4 4 4 4 27 Greatest Support 65 | 32 32 12 20 20 20 20 3 3 65 Greatest Overweight (x) 6 | . . . . . . 1 1 1 6 Average Overweight (x) . | . . . . . . . 1 1 1 Largest Inventory Capacity 10 | 4 4 . 1 1 1 1 1 1 10 Average Capacity 1 | 1 2 . . 1 1 . 1 1 2 Most Carried 8 | . . . . . . . . . 8 Average Carried . | . . . . . . . . . 1 Final Capacity 10 | 4 . . 1 1 1 1 1 1 10 Final Carried 8 | . . . . . . . . . 8 Class Distribution -------------------- 78% | Worker 13% | Watcher 4% | Recycler Dominant Class ---------------- Recycler | -10/Materials Watcher | -9/Materials Worker | -9/Mines Worker | -8/Materials Worker | -7/Factory Worker | -7/DSF Worker | -6/Factory Worker | -5/Factory Worker | -5/Extension Resources | -11 -10 -9 -9 -8 -7 -7 -6 -5 -5 ----------- Run | Yrd Mat Mat Min Mat Fac DSF Fac Fac Ext Matter Collected . | . . . . . . . . . . Remotely . | . . . . . . . . . . Salvage Created . | . . . . . . . . . . Parts . | . . . . . . . . . . Haulers Intercepted . | . . . . . . . . . . Recyclers Shooed . | . . . . . . . . . . Parts Field Recycled . | . . . . . . . . . . Retrieved Matter . | . . . . . . . . . . Parts Self-Destructed . | . . . . . . . . . . Prevented . | . . . . . . . . . . Parts Restored . | . . . . . . . . . . Kills | -11 -10 -9 -9 -8 -7 -7 -6 -5 -5 ------- Run | Yrd Mat Mat Min Mat Fac DSF Fac Fac Ext Combat Hostiles Destroyed . | . . . . . . . . . . Classes Destroyed . | . . . . . . . . . . Best Kill Streak . | . . . . . . . . . . Combat Bots Only . | . . . . . . . . . . Max Kills in Single Turn . | . . . . . . . . . . Gunslinging . | . . . . . . . . . . Exploded . | . . . . . . . . . . Melee . | . . . . . . . . . . Uniques/NPCs Destroyed . | . . . . . . . . . . Combat | -11 -10 -9 -9 -8 -7 -7 -6 -5 -5 -------- Run | Yrd Mat Mat Min Mat Fac DSF Fac Fac Ext Hostile Shots Fired 128 | . . . . . . 24 . . 104 Missed 30 | . . . . . . 10 . . 20 Hits 98 | . . . . . . 14 . . 84 Projectile 98 | . . . . . . 14 . . 84 Critical Strikes 9 | . . . . . . 3 . . 6 Damage Taken 1972 | . . . . . . 308 . . 1664 Core 1212 | . . . . . . 198 . . 1014 Absorbed by Shields . | . . . . . . . . . . Ignored by Resistances 534 | . . . . . . 83 . . 451 Core Remaining (%) 95 | 100 100 . 100 100 . 71 100 . . Volleys Fired . | . . . . . . . . . . Largest . | . . . . . . . . . . Hottest . | . . . . . . . . . . Shots Fired . | . . . . . . . . . . Gun . | . . . . . . . . . . Cannon . | . . . . . . . . . . Launcher . | . . . . . . . . . . Special . | . . . . . . . . . . Kinetic . | . . . . . . . . . . Thermal . | . . . . . . . . . . Explosive . | . . . . . . . . . . Electromagnetic . | . . . . . . . . . . Robot Hit Streak . | . . . . . . . . . . Robot Miss Streak . | . . . . . . . . . . Penetration Max . | . . . . . . . . . . Secondary Targets . | . . . . . . . . . . Shots Hit Robots . | . . . . . . . . . . Core Hits . | . . . . . . . . . . Critical Kills . | . . . . . . . . . . Critical Parts Destroyed . | . . . . . . . . . . Critical Strikes . | . . . . . . . . . . Melee Attacks . | . . . . . . . . . . Impact . | . . . . . . . . . . Slashing . | . . . . . . . . . . Piercing . | . . . . . . . . . . Sneak Attacks . | . . . . . . . . . . Combat Hostiles . | . . . . . . . . . . Follow-up Attacks . | . . . . . . . . . . Damage Inflicted 8 | . . . . . . 8 . . . Guns . | . . . . . . . . . . Cannons . | . . . . . . . . . . Explosions . | . . . . . . . . . . Melee . | . . . . . . . . . . Ramming 8 | . . . . . . 8 . . . Kinetic . | . . . . . . . . . . Thermal . | . . . . . . . . . . Explosive . | . . . . . . . . . . Electromagnetic . | . . . . . . . . . . Impact . | . . . . . . . . . . Slashing . | . . . . . . . . . . Piercing . | . . . . . . . . . . Highest Corruption 1 | . . . . . . . 1 . . Average Corruption 1 | . . . . . . . 1 . . Corruption Purged . | . . . . . . . . . . Corruption Blocked . | . . . . . . . . . . Overload Shots . | . . . . . . . . . . Overflow Damage . | . . . . . . . . . . Projectiles . | . . . . . . . . . . Explosions . | . . . . . . . . . . Melee . | . . . . . . . . . . Knockbacks . | . . . . . . . . . . Impact . | . . . . . . . . . . Kinetic . | . . . . . . . . . . Secondary . | . . . . . . . . . . Self-Inflicted Damage 4 | . . . . . . 4 . . . Shots . | . . . . . . . . . . Rammed 3 | . . . . . . 3 . . . Targets Rammed 3 | . . . . . . 3 . . . Kicked . | . . . . . . . . . . Crushed . | . . . . . . . . . . Highest Temperature 575 | . . . . . . 2 . . 575 Average Temperature 181 | . . . . . . 2 . . 188 Received Heat Transfer 930 | . . . . . . 99 . . 831 Effects 2 | . . . . . . . . . 2 Damage (minor) 1 | . . . . . . . . . 1 Damage (major) 1 | . . . . . . . . . 1 Siege Activations . | . . . . . . . . . . Martial Activations . | . . . . . . . . . . Shielding Activations . | . . . . . . . . . . Robots Disrupted . | . . . . . . . . . . Combat Hostiles . | . . . . . . . . . . Robots Corrupted . | . . . . . . . . . . Combat Hostiles . | . . . . . . . . . . Parts Fried . | . . . . . . . . . . Impact Corruptions . | . . . . . . . . . . Robots Melted . | . . . . . . . . . . Combat Hostiles . | . . . . . . . . . . Parts Melted . | . . . . . . . . . . Heat Transferred . | . . . . . . . . . . Parts Sabotaged . | . . . . . . . . . . Parts Stolen . | . . . . . . . . . . Parts Stripped . | . . . . . . . . . . Power Chain Reactions . | . . . . . . . . . . Alert | -11 -10 -9 -9 -8 -7 -7 -6 -5 -5 ------- Run | Yrd Mat Mat Min Mat Fac DSF Fac Fac Ext Maximum Alert Level . | . . . . . . . . . . Low Security (%) 100 | 100 100 100 100 100 100 100 100 100 100 Level 1 . | . . . . . . . . . . Level 2 . | . . . . . . . . . . Level 3 . | . . . . . . . . . . Level 4 . | . . . . . . . . . . Level 5 . | . . . . . . . . . . High Security . | . . . . . . . . . . Max Security . | . . . . . . . . . . Peak Influence 1 | . . . . . . 1 . . . Initial 1 | . . . . . . 1 . . . Average . | . . . . . . . . . . Influence Increases 4 | . . . . . 4 . . . . Successful Hack 4 | . . . . . 4 . . . . Influence Decreases 4 | . . . . . . 4 . . . Entered New Map 3 | . . . . . . 3 . . . Lost Part 1 | . . . . . . 1 . . . Squads Dispatched 3 | . . . . . . 1 1 1 . Investigation 1 | . . . . . . . 1 . . Extermination 1 | . . . . . . . . 1 . Reinforcement 1 | . . . . . . 1 . . . Assault . | . . . . . . . . . . Garrison . | . . . . . . . . . . Intercept . | . . . . . . . . . . Searches Triggered . | . . . . . . . . . . Construction Impeded . | . . . . . . . . . . Haulers Reinforced . | . . . . . . . . . . Active Scanning Responses . | . . . . . . . . . . Cargo Convoy Interrupts . | . . . . . . . . . . Stealth | -11 -10 -9 -9 -8 -7 -7 -6 -5 -5 --------- Run | Yrd Mat Mat Min Mat Fac DSF Fac Fac Ext Distress Signals 3 | . . . . 2 . . . . 1 Communications Jammed . | . . . . . . . . . . Distress Signals . | . . . . . . . . . . Times Spotted 20 | . 1 . . 2 . 5 . . 12 Peak Tracking Total 6 | . . . . 4 . 4 . . 6 Tactical Retreats . | . . . . . . . . . . Traps | -11 -10 -9 -9 -8 -7 -7 -6 -5 -5 ------- Run | Yrd Mat Mat Min Mat Fac DSF Fac Fac Ext Traps Triggered 1 | . . . . . . 1 . . . Indirectly . | . . . . . . . . . . Trap Hack Attempts . | . . . . . . . . . . Triggered . | . . . . . . . . . . Disarmed . | . . . . . . . . . . Reprogrammed . | . . . . . . . . . . Reused . | . . . . . . . . . . Traps Extracted . | . . . . . . . . . . Installed . | . . . . . . . . . . Triggered . | . . . . . . . . . . Machines | -11 -10 -9 -9 -8 -7 -7 -6 -5 -5 ---------- Run | Yrd Mat Mat Min Mat Fac DSF Fac Fac Ext Machines Disabled . | . . . . . . . . . . Max in Single Turn . | . . . . . . . . . . Machines Repaired . | . . . . . . . . . . Machines Dismantled . | . . . . . . . . . . Machines Sabotaged . | . . . . . . . . . . Overloaded Fab Kills . | . . . . . . . . . . Hacking | -11 -10 -9 -9 -8 -7 -7 -6 -5 -5 --------- Run | Yrd Mat Mat Min Mat Fac DSF Fac Fac Ext Machines Accessed 5 | . . . 1 1 1 . 1 1 . Terminals 4 | . . . . 1 1 . 1 1 . Fabricators . | . . . . . . . . . . Repair Stations . | . . . . . . . . . . Recycling Units . | . . . . . . . . . . Scanalyzers . | . . . . . . . . . . Garrison Access . | . . . . . . . . . . Total Hacks 9 | . . . 1 1 1 . 5 1 . Successful 3 | . . . 1 . 1 . . 1 . Failed 6 | . . . . 1 . . 5 . . Catastrophic 2 | . . . . 1 . . 1 . . Database Lockouts . | . . . . . . . . . . Manual 6 | . . . . 1 . . 5 . . Terminals 8 | . . . . 1 1 . 5 1 . Fabricators . | . . . . . . . . . . Repair Stations . | . . . . . . . . . . Recycling Units . | . . . . . . . . . . Scanalyzers . | . . . . . . . . . . Garrison Access . | . . . . . . . . . . Terminal Hacks 3 | . . . 1 . 1 . . 1 . Open Door 2 | . . . 1 . . . . 1 . Open DSF 1 | . . . . . 1 . . . . Fabricator Hacks . | . . . . . . . . . . Repair Station Hacks . | . . . . . . . . . . Recycling Unit Hacks . | . . . . . . . . . . Scanalyzer . | . . . . . . . . . . Garrison Access Hacks . | . . . . . . . . . . Unauthorized Hacks . | . . . . . . . . . . Terminals . | . . . . . . . . . . Fabricators . | . . . . . . . . . . Repair Stations . | . . . . . . . . . . Recycling Units . | . . . . . . . . . . Scanalyzers . | . . . . . . . . . . Garrison Access . | . . . . . . . . . . Data Cores Recovered . | . . . . . . . . . . Used . | . . . . . . . . . . Hacking Detections 2 | . . . . 1 . . 1 . . Full Trace Events 1 | . . . . . . . 1 . . Feedback Events 1 | . . . . . . . 1 . . Corruption 1 | . . . . . . . 1 . . Feedback Blocked . | . . . . . . . . . . Robot Schematics Acquired . | . . . . . . . . . . Robots Built . | . . . . . . . . . . Authchips . | . . . . . . . . . . Time . | . . . . . . . . . . Total Robot Build Rating . | . . . . . . . . . . Part Schematics Acquired . | . . . . . . . . . . Parts Built . | . . . . . . . . . . Authchips . | . . . . . . . . . . Time . | . . . . . . . . . . Total Part Build Rating . | . . . . . . . . . . Part Studies Acquired . | . . . . . . . . . . Parts Repaired . | . . . . . . . . . . Time . | . . . . . . . . . . Parts Recycled . | . . . . . . . . . . Recycled Matter . | . . . . . . . . . . Retrieved Matter . | . . . . . . . . . . Retrieved Components . | . . . . . . . . . . Parts Scanalyzed . | . . . . . . . . . . Part Schematics Acquired . | . . . . . . . . . . Parts Damaged . | . . . . . . . . . . Bothacking | -11 -10 -9 -9 -8 -7 -7 -6 -5 -5 ------------ Run | Yrd Mat Mat Min Mat Fac DSF Fac Fac Ext Used RIF Installer . | . . . . . . . . . . Robots Hacked 2 | . 1 . . . . . . . 1 Non-combat 2 | . 1 . . . . . . . 1 Combat . | . . . . . . . . . . Robot Hacks Applied 3 | . 2 . . . . . . . 1 locate_stockpiles 1 | . . . . . . . . . 1 map_route 1 | . 1 . . . . . . . . mark_security 1 | . 1 . . . . . . . . Relay Couplers Released . | . . . . . . . . . . Fabnet Peak Effective % . | . . . . . . . . . . Robots Rewired . | . . . . . . . . . . Allies Hacked . | . . . . . . . . . . Hacks Repelled . | . . . . . . . . . . Allies | -11 -10 -9 -9 -8 -7 -7 -6 -5 -5 -------- Run | Yrd Mat Mat Min Mat Fac DSF Fac Fac Ext Total Allies . | . . . . . . . . . . Largest Group . | . . . . . . . . . . Highest-Rated Group . | . . . . . . . . . . Highest-Rated Ally . | . . . . . . . . . . Total Orders . | . . . . . . . . . . Ally Attacks . | . . . . . . . . . . Total Damage . | . . . . . . . . . . Kills . | . . . . . . . . . . Allies Corrupted . | . . . . . . . . . . Allies Melted . | . . . . . . . . . . Intel | -11 -10 -9 -9 -8 -7 -7 -6 -5 -5 ------- Run | Yrd Mat Mat Min Mat Fac DSF Fac Fac Ext Active Infowar (turns) 170 | . 18 34 100 . . . . . 18 Optics 152 | . 18 34 100 . . . . . . T.N.C. 18 | . . . . . . . . . 18 Robot Analysis Total 4 | 1 1 . 1 . . . . . 1 Derelict Logs Recovered 2 | . . . 2 . . . . . . Drone Launches . | . . . . . . . . . . Drone Recoveries . | . . . . . . . . . . Exploration | -11 -10 -9 -9 -8 -7 -7 -6 -5 -5 ------------- Run | Yrd Mat Mat Min Mat Fac DSF Fac Fac Ext Turns Passed 1113 | 11 73 34 215 112 2 52 182 307 125 Spaces Moved 1297 | 17 89 60 322 136 3 60 183 308 119 Core 628 | 12 2 . . . . 10 183 308 113 Treads 6 | . . . . . . . . . 6 Legs . | . . . . . . . . . . Wheels 391 | 5 53 . 144 136 3 50 . . . Hover 272 | . 34 60 178 . . . . . . Flight . | . . . . . . . . . . Fastest Speed 50 | 50 50 56 56 80 80 50 100 100 50 Average Speed 85 | 64 82 56 66 80 80 81 100 100 106 Slowest Speed 350 | 100 100 56 80 80 80 100 100 100 350 Overloaded Moves . | . . . . . . . . . . Propulsion Burnouts . | . . . . . . . . . . Robots Hopped . | . . . . . . . . . . Potential Cave-ins . | . . . . . . . . . . Cave-ins Triggered . | . . . . . . . . . . Exploration Rate (%) 27 | 3 24 16 68 17 . 72 8 13 27 Regions Visited 9 Branch Regions 2 Pre-discovered Areas 1 | . . . 1 . . . . . . Known Exits Taken 1 | . . . . . 1 . . . . Unknown Exits Taken 7 | 1 1 1 1 1 . . 1 1 . Scrap Searched . | . . . . . . . . . . Spaces Dug . | . . . . . . . . . . Terrain Destroyed . | . . . . . . . . . . Melee . | . . . . . . . . . . Projectile . | . . . . . . . . . . AOE . | . . . . . . . . . . Terrain Rammed . | . . . . . . . . . . Walls Destroyed . | . . . . . . . . . . Machines Disabled . | . . . . . . . . . . Actions | -11 -10 -9 -9 -8 -7 -7 -6 -5 -5 --------- Run | Yrd Mat Mat Min Mat Fac DSF Fac Fac Ext Total 1294 | 16 88 59 321 138 2 62 182 307 119 Wait 3 | . . . . 3 . . . . . Move 1288 | 16 88 59 321 135 2 59 182 307 119 Hop . | . . . . . . . . . . Pick Up . | . . . . . . . . . . Fast Attach . | . . . . . . . . . . Attach . | . . . . . . . . . . Detach . | . . . . . . . . . . Swap . | . . . . . . . . . . Drop . | . . . . . . . . . . Fire . | . . . . . . . . . . Melee . | . . . . . . . . . . Ram 3 | . . . . . . 3 . . . Kick . | . . . . . . . . . . Crush . | . . . . . . . . . . Escape Stasis . | . . . . . . . . . . Rewire . | . . . . . . . . . . Trap . | . . . . . . . . . . Miscellaneous . | . . . . . . . . . . Route ------- -11/Scrapyard -10/Materials -9/Materials -9/Mines -8/Materials -7/Factory -7/DSF -6/Factory -5/Factory -5/Extension History --------- Turn | Location | Event 3 | -11/Scrapyard | Discovered new exit (range 15) 12 | -11/Scrapyard | Entered Materials 67 | -10/Materials | Discovered new exit (range 21) 85 | -10/Materials | Entered another Materials area 111 | -9/Materials | Discovered new exit (range 14) 119 | -9/Materials | Entered Mines 136 | -9/Mines | Found a hidden stash of uninstalled traps 155 | -9/Mines | Learned 2 Materials zone layouts 173 | -9/Mines | Learned location of Zion (-6) 186 | -9/Mines | Found the Drone Emporium 330 | -9/Mines | Discovered new exit (range 6) 334 | -9/Mines | Entered Materials 435 | -8/Materials | Discovered new exit (range 14) 446 | -8/Materials | Entered Factory 448 | -7/Factory | Identified exit to DSF 448 | -7/Factory | Entered DSF 484 | -7/DSF | Additional patrols routed to DSF 488 | -7/DSF | Discovered new exit (range 14) 500 | -7/DSF | Entered Factory 669 | -6/Factory | Discovered new exit (range 13) 682 | -6/Factory | Entered another Factory area 982 | -5/Factory | Discovered new exit (range 9) 989 | -5/Factory | Entered Extension 1076 | -5/Extension | Spotted B-75 Beast 1084 | -5/Extension | Spotted B-75 Beast 1104 | -5/Extension | Core integrity fell below 50% 1111 | -5/Extension | Core integrity fell below 20% 1114 | -5/Extension | Destroyed by Y-64 Sentinel with KE Penetrator Last Messages --------------- 01098_ Penetrated by Slug. 01098_ Door Terminal disabled. 01098_ Knocked back. 01099_ Slug penetrates Sealed Heavy Doors. 01102_ Penetrated by Slug. 01105_ Critical hit (Meltdown: +250). 01106_ Adv. Weight Redist. System destroyed. 01106_ Transport Network Coupler destroyed. 01106_ Critical hit (Blast). 01107_ Slug penetrates Wall. 01107_ Penetrated by Slug. 01107_ Critical hit (Burn: +37). 01108_ Critical hit (Meltdown: +260). 01108_ Knocked back. 01110_ Penetrated by Slug. 01111_ Overheating: Lrg. Storage Unit damaged (-108). 01111_ Penetrated by Slug. 01112_ Overheating: Lrg. Storage Unit damaged (-40). 01114_ Knocked back. 01114_ Penetrated by Slug. Map ----- +----------------------------------------------------+ | ?????????????????????????????????????????????????? | | ??????!??????????????????????????????????????????? | | ?????????????????????????????????????????????????? | | ?????????????????????????????????????????????????? | | ?????????????????????????????????????????????????? | | ?????????????????????????????????????????????????? | | ?????????????????????????????????????????????????? | | ?????????????????????????????????????????????????? | | ?????????????????????????????????????????????????? | | ?????????????????????????????????????????????????? | | ?????????? ??????????????????????????????????????? | | ?????????? ??????????????????????????????????????? | | ?????????? ??????????????????????????????????????? | | ?????????# #?????????????????????????????????????? | | ?????????# #??##?##?# ???????????????????????????? | | ???????### ### ## ### ##?????????????????????????? | | ???????#"" "" "" ""#????????????????????????? | | ???????# " " " " #????????????????????????? | | ???????# YY #????????????????????????? | | ???#???# #????????????????????????? | | ######## #############????????????? | | ???????????? | | u ???????????? | | ??????????? | | % % % ??????????? | | % A kk k A ??????????? | | ######## BB #########????????????????? | | ???????# % BBBB % #????????????????????????? | | ???????# BBh % #????????????????????????? | | ???????# % % #????????????????????????? | | ???????# #????????????????????????? | | ??????####### #"""#######????????????????????????? | | ????????????###??????????????????????????????????? | | ?????????????????????????????????????????????????? | | | | | | | | | | | | | | | | | | | | | | | | | | | | | | | | | +----------------------------------------------------+ Best States ------------- Heat Dissipation 18 Energy Generation 15 Energy Capacity 190 Matter Stores 35 Matter Capacity 75 Sight Range 18 Terrain Scan Density 10 Additional Mass Support 9 Resistance: KI 20 Resistance: TH 20 Resistance: EX 20 Resistance: I 20 Resistance: S 20 Resistance: P 20 Evasion (%) 53 Recoil Reduction 2 Offensive Hacking 10 Item Schematics ----------------- None Robot Schematics ------------------ None Fabricated ------------ Nothing Repaired ---------- Nothing Studied --------- None Alien Tech Used ----------------- None Achievements -------------- None Challenges ------------ None Polymind | -11 -10 -9 -9 -8 -7 -7 -6 -5 -5 ---------- Run | Yrd Mat Mat Min Mat Fac DSF Fac Fac Ext Hosts 5 | 1 1 . 1 . . 1 . . 1 Combat Hostiles . | . . . . . . . . . . Allies . | . . . . . . . . . . Unique Host Classes 4 | 1 1 . 1 . . . . . 1 Average Host Suspicion 38 | . 22 15 57 32 . 62 15 47 30 Unsuspicious Activity 346 | 2 6 . 74 93 . 27 36 66 42 Returns to Shadow . | . . . . . . . . . . Fuzzy Dispatches 1 | . . . . . . . . 1 . Protomatter Created . | . . . . . . . . . . Used 32 | 5 12 . 5 . . 5 . . 5 Decayed . | . . . . . . . . . . Highest Spend 12 | 5 12 . 5 . . 5 . . 5 Game ------ Seed SchematicBlanketShearcannon Manual? 0 Play Time 00:12:33 Cumulative 39.1 hours Start 2026.02.22 @ 01:08:37 End 2026.02.22 @ 01:19:56 Sessions 1 Manual Loads 0 Difficulty Adventurer Special Mode Winter2022/Polymind Game No. 51 Rogue 27 Adventurer 24 Explorer 0 Win Type - Total 0 Types 0/0/0/0/0/0/0/0/0/0 Lore% 23 Gallery% 32 Achievement% 26 Wizard Run 0 Options --------- Layout 0 ASCII 0 Keyboard 1 Movement Numpad Keybinds 0 Fullscreen 1 Font 24/Smallcaps Map View 183x50 Zoom Use 0% Tactical HUD 1 Map Filters NONE Filters NONE Steam 1 RUN: c2b4c711-7c63-4125-b1ca-d577a9ad0da5